[Event "Polish Youth G18 Championship 2023"]
[Site "Jastrzebia Gora"]
[Date "2023.03.18"]
[Round "8.14"]
[White "Pietrzak, Emilia"]
[Black "Bychowska, Marta"]
[Result "1-0"]
[ECO "B00"]
[WhiteElo "1424"]
[BlackElo "1388"]
[Annotator "NA RC COMBH"]
[PlyCount "157"]
[EventDate "2023.03.11"]
[EventType "swiss"]
[EventCountry "POL"]
[SourceTitle "playchess.com"]
[Source "ChessBase"]
[SourceQuality "1"]
[TimeControl "40/5400+30:1800+30"]

1. e4 {[%emt 0:00:32]} d6 {[%emt 0:00:07]} 2. d4 {[%emt 0:00:06]} e5 {[%emt 0:00:06]} 3. Ne2 {[%emt 0:00:16]} Nf6 {[%emt 0:00:35]} 4. Nbc3 {[%emt 0:00:14]} exd4 {[%emt 0:00:41]} 5. Nxd4 {[%emt 0:00:17]} Nc6 {[%emt 0:00:28]} 6. Bc4 {[%emt 0:01:20]} Be7 {[%emt 0:02:05]} 7. f3 {[%emt 0:04:18]} a6 {[%emt 0:00:21]} 8. Nxc6 {[%emt 0:10:56]} bxc6 {[%emt 0:00:07]} 9. Bf4 {[%emt 0:06:40]} Be6 {[%emt 0:06:01]} 10. Qe2 {[%emt 0:03:39]} Qb8 {[%emt 0:03:29]} 11. Bxe6 {[%emt 0:10:13]} fxe6 {[%emt 0:05:09]} 12. Qc4 {[%emt 0:02:25]} Qb6 {[%emt 0:03:17]} 13. O-O-O {[%emt 0:05:50]} Rb8 {[%emt 0:04:01]} 14. b3 {[%emt 0:06:58]} Nh5 {[%emt 0:04:12]} 15. Bd2 {[%emt 0:03:52]} d5 {[%emt 0:08:28]} 16. exd5 {[%emt 0:01:25]} cxd5 {[%emt 0:00:09]} 17. Qg4 {[%emt 0:05:47]} Nf6 {[%emt 0:07:35]} 18. Qxg7 {[%emt 0:02:14]} Rg8 {[%emt 0:00:08]} 19. Qh6 {[%emt 0:00:26]} Rxg2 {[%emt 0:00:50]} 20. Bg5 {[%emt 0:02:47]} Qf2 {[%emt 0:01:27]} 21. Rd2 {[%emt 0:03:35]} Qxf3 {[%emt 0:02:50]} 22. Rd3 {[%emt 0:03:27]} Qh5 {[%emt 0:15:50]} 23. Qxh5+ {[%emt 0:01:14]} Nxh5 {[%emt 0:00:08]} 24. Bxe7 {[%emt 0:00:58]} Kxe7 {[%emt 0:00:07]} 25. Re1 {[%emt 0:01:14]} Kd6 {[%emt 0:03:31]} 26. Ne4+ {[%emt 0:01:36]} Kc6 {[%emt 0:01:29]} 27. Nf6 {[%emt 0:01:50]} Nxf6 {[%emt 0:10:20]} 28. Rxe6+ {[%emt 0:00:10]} Kd7 {[%emt 0:02:26]} 29. Rxf6 {[%emt 0:00:12]} Rxh2 {[%emt 0:03:35]} 30. Rxd5+ {[%emt 0:00:32]} Ke7 {[%emt 0:00:10]} 31. Rxa6 {[%emt 0:02:24]} h5 {[%emt 0:00:31]} 32. Rh6 {[%emt 0:00:58]} h4 {[%emt 0:01:33]} 33. Rdh5 {[%emt 0:01:05]} Rb4 {[%emt 0:00:16]} 34. Rc5 {[%emt 0:02:36]} Kd7 {[%emt 0:01:41]} 35. Rd5+ {[%emt 0:02:46]} Ke7 {[%emt 0:00:46]} 36. Rc5 {[%emt 0:02:16]} Kd7 {[%emt 0:00:09]} 37. Rg5 {[%emt 0:00:28]} Rf4 {[%emt 0:00:48]} 38. Rg7+ {[%emt 0:00:28]} Kc8 {[%emt 0:00:08]} 39. Rhh7 {[%emt 0:00:55]} Rff2 {[%emt 0:00:20]} 40. Rxc7+ {[%emt 0:00:00]} Kd8 {[%emt 0:00:00]} 41. Kb2 {[%emt 0:01:19]} h3 {[%emt 0:00:48]} 42. Rc3 {[%emt 0:00:25]} Re2 {[%emt 0:00:18]} 43. Rhxh3 {[%emt 0:00:48]} Rxc2+ {[%emt 0:00:11]} 44. Rxc2 {[%emt 0:00:15]} Rxh3 {[%emt 0:00:03]} 45. Ka3 {[%emt 0:00:43]} Kd7 {[%emt 0:00:16]} 46. Ka4 {[%emt 0:00:12]} Kd6 {[%emt 0:00:14]} 47. Ka5 {[%emt 0:00:32]} Rh8 {[%emt 0:00:11]} 48. a4 {[%emt 0:00:45]} Rb8 {[%emt 0:00:19]} 49. Rc3 {[%emt 0:03:00]} Kd5 {[%emt 0:00:15]} 50. Ka6 {[%emt 0:00:53]} Kd4 {[%emt 0:00:14]} 51. Rh3 {[%emt 0:00:41]} Kc5 {[%emt 0:00:08]} 52. Rh5+ {[%emt 0:00:22]} Kc6 {[%emt 0:00:30]} 53. Rh6+ {[%emt 0:00:27]} Kc5 {[%emt 0:02:12]} 54. Rh5+ {[%emt 0:06:32]} Kc6 {[%emt 0:00:17]} 55. Ka5 {[%emt 0:00:39]} Rxb3 {[%emt 0:00:21]} 56. Rh7 {[%emt 0:01:47]} Rb8 {[%emt 0:00:31]} 57. Rh5 {[%emt 0:00:40]} Rb3 {[%emt 0:02:21]} 58. Ka6 {[%emt 0:02:47]} Rb8 {[%emt 0:00:40]} 59. Rh6+ {[%emt 0:00:14]} Kc7 {[%emt 0:01:10]} 60. a5 {[%emt 0:00:58]} Rb1 {[%emt 0:03:39]} 61. Rb6 {[%emt 0:01:17]} Rh1 {[%emt 0:02:17]} 62. Ka7 {[%emt 0:01:05]} Rh8 {[%emt 0:00:18]} 63. Rb2 {[%emt 0:01:18]} Rh6 {[%emt 0:01:47]} 64. a6 {[%emt 0:01:24]} Rh1 {[%emt 0:01:07]} 65. Rc2+ {[%emt 0:00:16]} Kd7 {[%emt 0:00:16]} 66. Rb2 {[%emt 0:10:27]} Kc7 {[%emt 0:00:19]} 67. Rb7+ {[%emt 0:00:24]} Kc8 {[%emt 0:00:18]} 68. Rb5 {[%emt 0:01:02]} Kc7 {[%emt 0:01:35]} 69. Rc5+ {[%emt 0:00:18]} Kd8 {[%emt 0:00:16]} 70. Rc6 {[%emt 0:02:40]} Kd7 {[%emt 0:00:14]} 71. Kb7 {[%emt 0:00:38]} Ra1 {[%emt 0:00:19]} 72. Rh6 {[%emt 0:01:54]} Rc1 {[%emt 0:05:00]} 73. Rh7+ {[%emt 0:00:35]} Kd8 {[%emt 0:00:10]} 74. a7 {[%emt 0:01:24]} Rb1+ {[%emt 0:00:07]} 75. Ka6 {[%emt 0:00:14]} Ra1+ {[%emt 0:00:09]} 76. Kb5 {[%emt 0:00:04]} Rb1+ {[%emt 0:00:16]} 77. Kc4 {[%emt 0:00:42]} Rc1+ {[%emt 0:01:07]} 78. Kd3 {[%emt 0:00:13]} Ra1 {[%emt 0:00:32]} 79. a8=Q+ {[%emt 0:00:22]} 1-0

[Event "Polish Youth G18 Championship 2023"]
[Site "Jastrzebia Gora"]
[Date "2023.03.18"]
[Round "8.15"]
[White "Gornisiewicz, Natalia"]
[Black "Kaznowska, Kinga"]
[Result "1/2-1/2"]
[ECO "D11"]
[WhiteElo "1287"]
[BlackElo "1352"]
[Annotator "NA RC COMBH"]
[PlyCount "108"]
[EventDate "2023.03.11"]
[EventType "swiss"]
[EventCountry "POL"]
[SourceTitle "playchess.com"]
[Source "ChessBase"]
[SourceQuality "1"]
[TimeControl "40/5400+30:1800+30"]

1. d4 {[%emt 0:00:08]} d5 {[%emt 0:00:10]} 2. c4 {[%emt 0:00:07]} c6 {[%emt 0:00:06]} 3. Nf3 {[%emt 0:00:44]} Nf6 {[%emt 0:00:12]} 4. g3 {[%emt 0:01:10]} e6 {[%emt 0:00:41]} 5. Bg2 {[%emt 0:00:58]} Bd6 {[%emt 0:02:24]} 6. O-O {[%emt 0:01:35]} O-O {[%emt 0:00:13]} 7. Qc2 {[%emt 0:01:10]} Nbd7 {[%emt 0:01:27]} 8. Nbd2 {[%emt 0:03:13]} e5 {[%emt 0:01:44]} 9. dxe5 {[%emt 0:06:01]} Nxe5 {[%emt 0:00:25]} 10. cxd5 {[%emt 0:15:23]} Nxd5 {[%emt 0:00:45]} 11. Nxe5 {[%emt 0:04:12]} Bxe5 {[%emt 0:00:23]} 12. Nc4 {[%emt 0:01:12]} Qe7 {[%emt 0:03:39]} 13. a3 {[%emt 0:04:51]} Nb6 {[%emt 0:08:15]} 14. Nxe5 {[%emt 0:03:47]} Qxe5 {[%emt 0:00:16]} 15. Bf4 {[%emt 0:00:32]} Qf6 {[%emt 0:02:12]} 16. Rfd1 {[%emt 0:02:18]} Bf5 {[%emt 0:01:23]} 17. e4 {[%emt 0:00:44]} Be6 {[%emt 0:04:34]} 18. Bd6 {[%emt 0:03:40]} Rfd8 {[%emt 0:02:14]} 19. e5 {[%emt 0:00:57]} Bf5 {[%emt 0:02:38]} 20. Qxc6 {[%emt 0:09:42]} bxc6 {[%emt 0:05:47]} 21. exf6 {[%emt 0:00:07]} Nc4 {[%emt 0:02:23]} 22. Bxc6 {[%emt 0:07:16]} Nxb2 {[%emt 0:09:03]} 23. Bxa8 {[%emt 0:06:26]} Nxd1 {[%emt 0:00:18]} 24. Rxd1 {[%emt 0:04:24]} Rxa8 {[%emt 0:00:19]} 25. Be7 {[%emt 0:00:16]} gxf6 {[%emt 0:00:34]} 26. Bxf6 {[%emt 0:00:08]} Be6 {[%emt 0:00:48]} 27. f4 {[%emt 0:01:48]} a6 {[%emt 0:01:05]} 28. Kg2 {[%emt 0:01:08]} Rc8 {[%emt 0:01:26]} 29. Rd2 {[%emt 0:00:33]} h6 {[%emt 0:01:22]} 30. h3 {[%emt 0:00:51]} Bc4 {[%emt 0:01:12]} 31. g4 {[%emt 0:01:10]} Bb3 {[%emt 0:00:13]} 32. Kg3 {[%emt 0:01:15]} a5 {[%emt 0:01:45]} 33. f5 {[%emt 0:01:22]} a4 {[%emt 0:01:38]} 34. h4 {[%emt 0:01:03]} Bc2 {[%emt 0:05:47]} 35. Rd6 {[%emt 0:03:01]} h5 {[%emt 0:03:11]} 36. Bd4 {[%emt 0:02:12]} hxg4 {[%emt 0:10:57]} 37. Rh6 {[%emt 0:02:20]} f6 {[%emt 0:00:25]} 38. Rg6+ {[%emt 0:02:05]} Kh7 {[%emt 0:00:36]} 39. Rxf6 {[%emt 0:02:13]} Rc4 {[%emt 0:03:19]} 40. Rf7+ {[%emt 0:00:00]} Kg8 {[%emt 0:00:00]} 41. Rg7+ {[%emt 0:04:40]} Kf8 {[%emt 0:01:01]} 42. Rxg4 {[%emt 0:00:07]} Kf7 {[%emt 0:04:36]} 43. Rf4 {[%emt 0:01:37]} Bd1 {[%emt 0:03:36]} 44. f6 {[%emt 0:02:10]} Rc8 {[%emt 0:01:47]} 45. Re4 {[%emt 0:03:11]} Re8 {[%emt 0:00:35]} 46. Rf4 {[%emt 0:09:21]} Bc2 {[%emt 0:05:58]} 47. Rf2 {[%emt 0:01:26]} Rg8+ {[%emt 0:01:51]} 48. Kh3 {[%emt 0:04:23]} Bb3 {[%emt 0:00:46]} 49. Be3 {[%emt 0:02:11]} Be6+ {[%emt 0:00:56]} 50. Kh2 {[%emt 0:00:13]} Rg4 {[%emt 0:00:07]} 51. Bg5 {[%emt 0:02:06]} Kg6 {[%emt 0:05:31]} 52. Rc2 {[%emt 0:03:47]} Rc4 {[%emt 0:01:16]} 53. Re2 {[%emt 0:01:21]} Bf7 {[%emt 0:03:16]} 54. Rg2 {[%emt 0:01:55]} Kh5 {[%emt 0:02:52]} 1/2-1/2

[Event "Polish Youth G18 Championship 2023"]
[Site "Jastrzebia Gora"]
[Date "2023.03.18"]
[Round "8.16"]
[White "Lopusiewicz, Marta"]
[Black "Bartoszek, Julia"]
[Result "0-1"]
[ECO "B30"]
[WhiteElo "1180"]
[BlackElo "1344"]
[Annotator "NA RC COMBH"]
[PlyCount "128"]
[EventDate "2023.03.11"]
[EventType "swiss"]
[EventCountry "POL"]
[SourceTitle "playchess.com"]
[Source "ChessBase"]
[SourceQuality "1"]
[TimeControl "40/5400+30:1800+30"]

1. e4 {[%emt 0:00:02]} c5 {[%emt 0:00:06]} 2. Nf3 {[%emt 0:00:04]} Nc6 {[%emt 0:00:07]} 3. b4 {[%emt 0:01:02]} Nxb4 {[%emt 0:01:59]} 4. c3 {[%emt 0:00:11]} Nc6 {[%emt 0:00:29]} 5. d4 {[%emt 0:00:23]} cxd4 {[%emt 0:00:17]} 6. cxd4 {[%emt 0:00:05]} d5 {[%emt 0:01:00]} 7. exd5 {[%emt 0:02:49]} Qxd5 {[%emt 0:00:12]} 8. Be2 {[%emt 0:00:44]} e6 {[%emt 0:02:32]} 9. O-O {[%emt 0:02:46]} Nge7 {[%emt 0:02:06]} 10. Nc3 {[%emt 0:00:31]} Qd8 {[%emt 0:00:34]} 11. Bf4 {[%emt 0:02:11]} Nd5 {[%emt 0:03:10]} 12. Qc1 {[%emt 0:01:38]} Nxf4 {[%emt 0:01:53]} 13. Qxf4 {[%emt 0:00:10]} Bd6 {[%emt 0:00:17]} 14. Qe3 {[%emt 0:01:38]} O-O {[%emt 0:01:51]} 15. Rab1 {[%emt 0:02:50]} a6 {[%emt 0:03:18]} 16. a4 {[%emt 0:00:55]} Re8 {[%emt 0:08:42]} 17. Rfc1 {[%emt 0:05:26]} Rb8 {[%emt 0:03:19]} 18. Qd3 {[%emt 0:03:24]} Bf4 {[%emt 0:04:35]} 19. Rc2 {[%emt 0:01:00]} Qe7 {[%emt 0:01:33]} 20. Qc4 {[%emt 0:02:09]} Na5 {[%emt 0:07:07]} 21. Qb4 {[%emt 0:01:27]} Qxb4 {[%emt 0:00:28]} 22. Rxb4 {[%emt 0:00:07]} Nc6 {[%emt 0:00:20]} 23. Rb1 {[%emt 0:00:37]} Rd8 {[%emt 0:01:19]} 24. Rd1 {[%emt 0:00:39]} Bd7 {[%emt 0:00:39]} 25. Ne4 {[%emt 0:04:15]} Nb4 {[%emt 0:02:30]} 26. Rb2 {[%emt 0:00:48]} a5 {[%emt 0:00:20]} 27. Nc5 {[%emt 0:00:10]} Bc6 {[%emt 0:01:08]} 28. Nd3 {[%emt 0:04:03]} Nxd3 {[%emt 0:00:21]} 29. Rxd3 {[%emt 0:00:05]} Bxa4 {[%emt 0:00:26]} 30. Ra3 {[%emt 0:00:18]} Bc1 {[%emt 0:00:44]} 31. Rba2 {[%emt 0:00:10]} Bxa3 {[%emt 0:00:12]} 32. Rxa3 {[%emt 0:00:05]} Bc6 {[%emt 0:00:51]} 33. Rxa5 {[%emt 0:00:18]} Bxf3 {[%emt 0:00:33]} 34. Bxf3 {[%emt 0:00:05]} Rxd4 {[%emt 0:00:12]} 35. Rb5 {[%emt 0:00:36]} Rc4 {[%emt 0:01:06]} 36. g3 {[%emt 0:00:20]} b6 {[%emt 0:00:15]} 37. Kf1 {[%emt 0:01:12]} Rc5 {[%emt 0:00:24]} 38. Rb2 {[%emt 0:00:15]} b5 {[%emt 0:00:21]} 39. Be2 {[%emt 0:00:30]} b4 {[%emt 0:00:08]} 40. Ke1 {[%emt 0:00:00]} b3 {[%emt 0:00:00]} 41. Bd1 {[%emt 0:00:43]} g6 {[%emt 0:01:53]} 42. Ke2 {[%emt 0:00:25]} Ra5 {[%emt 0:00:48]} 43. Rxb3 {[%emt 0:01:13]} Rxb3 {[%emt 0:00:23]} 44. Bxb3 {[%emt 0:00:04]} Kf8 {[%emt 0:00:16]} 45. Kf1 {[%emt 0:00:25]} Ke7 {[%emt 0:00:17]} 46. h3 {[%emt 0:00:35]} Ra3 {[%emt 0:00:41]} 47. Bc2 {[%emt 0:00:23]} Ra1+ {[%emt 0:00:24]} 48. Kg2 {[%emt 0:00:07]} f5 {[%emt 0:00:13]} 49. g4 {[%emt 0:00:29]} f4 {[%emt 0:00:28]} 50. Kf3 {[%emt 0:00:58]} e5 {[%emt 0:00:23]} 51. g5 {[%emt 0:00:23]} Rh1 {[%emt 0:00:38]} 52. Kg2 {[%emt 0:01:15]} Rc1 {[%emt 0:00:19]} 53. Be4 {[%emt 0:00:05]} Rc3 {[%emt 0:01:04]} 54. h4 {[%emt 0:01:05]} Kf8 {[%emt 0:00:26]} 55. f3 {[%emt 0:01:13]} Re3 {[%emt 0:01:22]} 56. Kf1 {[%emt 0:01:34]} Rxe4 {[%emt 0:02:28]} 57. fxe4 {[%emt 0:00:10]} Ke7 {[%emt 0:00:09]} 58. Ke2 {[%emt 0:03:00]} Kd6 {[%emt 0:00:39]} 59. Kd2 {[%emt 0:00:41]} Kc5 {[%emt 0:00:09]} 60. Kd3 {[%emt 0:00:30]} Kb5 {[%emt 0:00:39]} 61. Kc3 {[%emt 0:00:51]} Kc5 {[%emt 0:01:04]} 62. Kd3 {[%emt 0:00:11]} Kb4 {[%emt 0:00:33]} 63. Ke2 {[%emt 0:00:50]} Kc4 {[%emt 0:00:18]} 64. Kf3 {[%emt 0:00:16]} Kd4 {[%emt 0:00:10]} 0-1

[Event "Polish Youth G18 Championship 2023"]
[Site "Jastrzebia Gora"]
[Date "2023.03.18"]
[Round "8.17"]
[White "Dallemura, Anna"]
[Black "Sivickis, Kornelia"]
[Result "1/2-1/2"]
[ECO "C54"]
[WhiteElo "1496"]
[BlackElo "1328"]
[Annotator "NA RC COMBH"]
[PlyCount "69"]
[EventDate "2023.03.11"]
[EventType "swiss"]
[EventCountry "POL"]
[SourceTitle "playchess.com"]
[Source "ChessBase"]
[SourceQuality "1"]
[TimeControl "40/5400+30:1800+30"]

1. e4 {[%emt 0:00:01]} e5 {[%emt 0:00:06]} 2. Nf3 Nc6 3. Bc4 Bc5 4. c3 Nf6 5. d3 d6 6. a4 {[%emt 0:02:46]} a5 {[%emt 0:02:03]} 7. O-O {[%emt 0:00:47]} h6 {[%emt 0:04:20]} 8. h3 {[%emt 0:01:21]} O-O {[%emt 0:00:16]} 9. Be3 {[%emt 0:02:50]} Ba7 {[%emt 0:01:47]} 10. Bb3 {[%emt 0:06:50]} Be6 {[%emt 0:01:17]} 11. Bc2 {[%emt 0:01:45]} d5 {[%emt 0:02:06]} 12. Qe2 {[%emt 0:04:52]} Bxe3 {[%emt 0:01:25]} 13. Qxe3 {[%emt 0:02:13]} dxe4 {[%emt 0:00:29]} 14. dxe4 {[%emt 0:00:11]} Qe7 {[%emt 0:01:16]} 15. Nbd2 {[%emt 0:16:42]} Rad8 {[%emt 0:02:54]} 16. Nb3 {[%emt 0:00:50]} b6 {[%emt 0:00:29]} 17. Nc1 {[%emt 0:00:32]} Nd7 {[%emt 0:00:54]} 18. g4 {[%emt 0:05:39]} Nc5 {[%emt 0:06:08]} 19. Ne2 {[%emt 0:01:27]} Bc4 {[%emt 0:03:17]} 20. Rfd1 {[%emt 0:07:08]} Bxe2 {[%emt 0:02:04]} 21. Qxe2 {[%emt 0:00:02]} Ne6 {[%emt 0:00:33]} 22. Qb5 {[%emt 0:02:21]} Qf6 {[%emt 0:07:46]} 23. Kg2 {[%emt 0:01:57]} Nf4+ {[%emt 0:01:49]} 24. Kg3 {[%emt 0:00:09]} Nxh3 {[%emt 0:02:28]} 25. Qe2 {[%emt 0:03:54]} Ng5 {[%emt 0:01:00]} 26. Nxg5 {[%emt 0:17:00]} Qf4+ {[%emt 0:00:17]} 27. Kg2 {[%emt 0:02:37]} Qxg5 {[%emt 0:01:50]} 28. Rxd8 {[%emt 0:04:16]} Nxd8 {[%emt 0:00:51]} 29. Bb3 {[%emt 0:00:39]} Nc6 {[%emt 0:02:17]} 30. Rd1 {[%emt 0:01:27]} Ne7 {[%emt 0:00:21]} 31. Kf1 {[%emt 0:05:09]} Ng6 {[%emt 0:01:26]} 32. Rd7 {[%emt 0:02:35]} Qc1+ {[%emt 0:02:20]} 33. Rd1 {[%emt 0:00:15]} Qg5 {[%emt 0:00:37]} 34. Rd7 {[%emt 0:00:31]} Qc1+ {[%emt 0:00:27]} 35. Rd1 {[%emt 0:00:36]} 1/2-1/2

[Event "Polish Youth G18 Championship 2023"]
[Site "Jastrzebia Gora"]
[Date "2023.03.18"]
[Round "8.18"]
[White "Tittor, Weronika"]
[Black "Olszewska, Wiktoria"]
[Result "1-0"]
[ECO "B10"]
[WhiteElo "1226"]
[BlackElo "1287"]
[Annotator "NA RC COMBH"]
[PlyCount "81"]
[EventDate "2023.03.11"]
[EventType "swiss"]
[EventCountry "POL"]
[SourceTitle "playchess.com"]
[Source "ChessBase"]
[SourceQuality "1"]
[TimeControl "40/5400+30:1800+30"]

1. e4 {[%emt 0:00:02]} c6 {[%emt 0:00:07]} 2. Nf3 {[%emt 0:02:44]} d5 {[%emt 0:02:22]} 3. Nc3 {[%emt 0:02:17]} dxe4 {[%emt 0:09:56]} 4. Nxe4 {[%emt 0:02:31]} Bg4 {[%emt 0:04:51]} 5. d4 {[%emt 0:02:52]} e6 {[%emt 0:07:38]} 6. c3 {[%emt 0:04:51]} Nf6 {[%emt 0:02:08]} 7. Ng3 {[%emt 0:03:29]} Bd6 {[%emt 0:08:17]} 8. Bd3 {[%emt 0:02:11]} Bxg3 {[%emt 0:10:08]} 9. hxg3 {[%emt 0:00:15]} O-O {[%emt 0:05:10]} 10. Qc2 {[%emt 0:01:49]} h6 {[%emt 0:10:37]} 11. Ne5 {[%emt 0:02:10]} Bh5 {[%emt 0:15:03]} 12. f3 {[%emt 0:02:25]} Nbd7 {[%emt 0:06:31]} 13. Nxd7 {[%emt 0:01:48]} Qxd7 {[%emt 0:00:08]} 14. g4 {[%emt 0:00:23]} Bg6 {[%emt 0:00:31]} 15. Bxg6 {[%emt 0:00:12]} fxg6 {[%emt 0:00:08]} 16. Qxg6 {[%emt 0:00:09]} Qf7 {[%emt 0:02:58]} 17. Rxh6 {[%emt 0:02:07]} Qxg6 {[%emt 0:01:55]} 18. Rxg6 {[%emt 0:00:09]} Kh7 {[%emt 0:01:07]} 19. Rg5 {[%emt 0:00:31]} Nd5 {[%emt 0:01:03]} 20. Bd2 {[%emt 0:02:41]} Rae8 {[%emt 0:01:33]} 21. O-O-O {[%emt 0:00:39]} Rf7 {[%emt 0:03:44]} 22. Rh1+ {[%emt 0:00:22]} Kg8 {[%emt 0:00:13]} 23. Rgh5 {[%emt 0:00:13]} Rfe7 {[%emt 0:00:16]} 24. Kc2 {[%emt 0:02:51]} e5 {[%emt 0:02:04]} 25. Rxe5 {[%emt 0:03:22]} Rxe5 {[%emt 0:00:07]} 26. dxe5 {[%emt 0:00:16]} Rxe5 {[%emt 0:00:06]} 27. Re1 {[%emt 0:00:33]} Rxe1 {[%emt 0:00:33]} 28. Bxe1 {[%emt 0:00:04]} Ne3+ {[%emt 0:00:10]} 29. Kd3 {[%emt 0:00:29]} Nxg2 {[%emt 0:00:35]} 30. Bf2 {[%emt 0:00:07]} b6 {[%emt 0:00:22]} 31. Bg3 {[%emt 0:00:38]} g5 {[%emt 0:00:23]} 32. Ke4 {[%emt 0:00:14]} Kg7 {[%emt 0:01:09]} 33. Kf5 {[%emt 0:00:11]} Kh6 {[%emt 0:00:11]} 34. f4 {[%emt 0:01:04]} gxf4 {[%emt 0:00:24]} 35. Bxf4+ {[%emt 0:00:09]} Nxf4 {[%emt 0:00:22]} 36. Kxf4 {[%emt 0:00:07]} Kg6 {[%emt 0:00:04]} 37. Ke5 {[%emt 0:00:44]} Kg5 {[%emt 0:00:26]} 38. Kd6 {[%emt 0:00:34]} c5 {[%emt 0:00:09]} 39. Kc7 {[%emt 0:00:06]} Kxg4 {[%emt 0:00:06]} 40. Kb7 {[%emt 0:00:00]} Kf5 {[%emt 0:00:00]} 41. Kxa7 {[%emt 0:00:25]} 1-0

[Event "Polish Youth G18 Championship 2023"]
[Site "Jastrzebia Gora"]
[Date "2023.03.18"]
[Round "8.19"]
[White "Czerwinska, Oliwia"]
[Black "Nagly, Malgorzata"]
[Result "1-0"]
[ECO "A04"]
[WhiteElo "1369"]
[BlackElo "1041"]
[Annotator "NA RC COMBH"]
[PlyCount "77"]
[EventDate "2023.03.11"]
[EventType "swiss"]
[EventCountry "POL"]
[SourceTitle "playchess.com"]
[Source "ChessBase"]
[SourceQuality "1"]
[TimeControl "40/5400+30:1800+30"]

1. Nf3 {[%emt 0:00:04]} Nc6 {[%emt 0:01:11]} 2. g3 {[%emt 0:00:18]} e5 {[%emt 0:00:59]} 3. d3 {[%emt 0:01:16]} d5 {[%emt 0:02:05]} 4. Bg2 {[%emt 0:00:43]} f5 {[%emt 0:02:37]} 5. O-O {[%emt 0:05:09]} Nf6 {[%emt 0:01:15]} 6. b3 {[%emt 0:02:42]} Bd6 {[%emt 0:02:57]} 7. c4 {[%emt 0:01:16]} e4 {[%emt 0:04:33]} 8. dxe4 {[%emt 0:16:15]} fxe4 {[%emt 0:05:40]} 9. Nd4 {[%emt 0:02:08]} Be5 {[%emt 0:04:38]} 10. Bb2 {[%emt 0:03:05]} Nxd4 {[%emt 0:12:44]} 11. Bxd4 {[%emt 0:00:18]} Bxd4 {[%emt 0:00:03]} 12. Qxd4 {[%emt 0:00:08]} Be6 {[%emt 0:00:09]} 13. Qe5 {[%emt 0:10:43]} Qe7 {[%emt 0:06:16]} 14. Nc3 {[%emt 0:05:41]} O-O-O {[%emt 0:01:33]} 15. cxd5 {[%emt 0:01:48]} Nxd5 {[%emt 0:04:07]} 16. Qxe4 {[%emt 0:09:36]} Rhe8 {[%emt 0:04:37]} 17. Rfd1 {[%emt 0:07:11]} c6 {[%emt 0:02:37]} 18. Nxd5 {[%emt 0:01:22]} Bxd5 {[%emt 0:02:33]} 19. Qxe7 {[%emt 0:00:47]} Rxe7 {[%emt 0:00:02]} 20. Bxd5 {[%emt 0:00:16]} cxd5 {[%emt 0:02:24]} 21. Rac1+ {[%emt 0:00:40]} Rc7 {[%emt 0:00:09]} 22. Kg2 {[%emt 0:01:06]} d4 {[%emt 0:03:08]} 23. f4 {[%emt 0:01:09]} Rxc1 {[%emt 0:01:05]} 24. Rxc1+ {[%emt 0:00:05]} Kd7 {[%emt 0:00:03]} 25. Rd1 {[%emt 0:00:47]} Ke6 {[%emt 0:00:24]} 26. e3 {[%emt 0:02:08]} d3 {[%emt 0:02:07]} 27. Kf3 {[%emt 0:00:13]} Rd6 {[%emt 0:03:46]} 28. e4 {[%emt 0:00:40]} Ra6 {[%emt 0:00:37]} 29. Rd2 {[%emt 0:00:09]} Rc6 {[%emt 0:00:48]} 30. Ke3 {[%emt 0:00:19]} Rc3 {[%emt 0:00:24]} 31. Rxd3 {[%emt 0:00:09]} Rc2 {[%emt 0:00:18]} 32. Rd2 {[%emt 0:00:07]} Rc3+ {[%emt 0:00:13]} 33. Kd4 {[%emt 0:00:39]} Rc7 {[%emt 0:00:31]} 34. g4 {[%emt 0:02:16]} Rd7+ {[%emt 0:00:43]} 35. Ke3 {[%emt 0:00:08]} Rc7 {[%emt 0:01:02]} 36. f5+ {[%emt 0:00:43]} Kf6 {[%emt 0:01:12]} 37. h4 {[%emt 0:01:13]} Rc5 {[%emt 0:01:31]} 38. Rd6+ {[%emt 0:02:02]} Ke5 {[%emt 0:01:16]} 39. Re6# {[%emt 0:00:16]} 1-0

[Event "Polish Youth G18 Championship 2023"]
[Site "Jastrzebia Gora"]
[Date "2023.03.18"]
[Round "8.20"]
[White "Pietruszka, Julia"]
[Black "Bauer, Marika"]
[Result "1/2-1/2"]
[ECO "C30"]
[WhiteElo "1151"]
[BlackElo "1183"]
[Annotator "NA RC COMBH"]
[PlyCount "61"]
[EventDate "2023.03.11"]
[EventType "swiss"]
[EventCountry "POL"]
[SourceTitle "playchess.com"]
[Source "ChessBase"]
[SourceQuality "1"]
[TimeControl "40/5400+30:1800+30"]

1. e4 {[%emt 0:00:01]} e5 {[%emt 0:00:05]} 2. f4 {[%emt 0:00:02]} d6 {[%emt 0:00:12]} 3. Nf3 {[%emt 0:01:12]} Nc6 {[%emt 0:02:59]} 4. d4 {[%emt 0:00:55]} exd4 {[%emt 0:05:27]} 5. Nxd4 {[%emt 0:00:11]} Nxd4 {[%emt 0:00:48]} 6. Qxd4 {[%emt 0:00:06]} Nf6 {[%emt 0:06:59]} 7. Bc4 {[%emt 0:04:25]} Be6 {[%emt 0:03:01]} 8. O-O {[%emt 0:06:29]} c6 {[%emt 0:03:43]} 9. Bxe6 {[%emt 0:02:43]} fxe6 {[%emt 0:00:16]} 10. e5 {[%emt 0:05:49]} Nd5 {[%emt 0:03:06]} 11. f5 {[%emt 0:05:52]} exf5 {[%emt 0:03:11]} 12. Rxf5 {[%emt 0:00:24]} Qb6 {[%emt 0:00:22]} 13. Qxb6 {[%emt 0:00:36]} Nxb6 {[%emt 0:00:23]} 14. Bf4 {[%emt 0:08:03]} O-O-O {[%emt 0:03:03]} 15. exd6 {[%emt 0:04:35]} Bxd6 {[%emt 0:00:28]} 16. Bxd6 {[%emt 0:00:29]} Rxd6 {[%emt 0:00:05]} 17. Nc3 {[%emt 0:00:35]} Re8 {[%emt 0:01:52]} 18. Raf1 {[%emt 0:02:01]} h6 {[%emt 0:04:51]} 19. Rf8 {[%emt 0:02:31]} Rxf8 {[%emt 0:00:46]} 20. Rxf8+ {[%emt 0:00:07]} Kc7 {[%emt 0:00:09]} 21. Ne4 {[%emt 0:06:22]} Rd8 {[%emt 0:01:50]} 22. Rxd8 {[%emt 0:04:11]} Kxd8 {[%emt 0:00:05]} 23. Nd6 {[%emt 0:00:25]} Na4 {[%emt 0:02:33]} 24. b3 {[%emt 0:09:23]} Nc5 {[%emt 0:01:36]} 25. Nf5 {[%emt 0:02:37]} Ne6 {[%emt 0:03:16]} 26. Kf2 {[%emt 0:00:31]} Kd7 {[%emt 0:01:12]} 27. Ke3 {[%emt 0:00:43]} b6 {[%emt 0:02:37]} 28. Nd4 {[%emt 0:01:10]} Nxd4 {[%emt 0:00:43]} 29. Kxd4 {[%emt 0:00:05]} Ke6 {[%emt 0:00:23]} 30. g4 {[%emt 0:01:58]} g6 {[%emt 0:00:49]} 31. Ke4 1/2-1/2